bitfinex/quotes_ETHUSD_20240820
["timestamp","ask_amount","ask_price","bid_price","bid_amount"]
[1724119137980,3.7635,2657.1,2656.8,0.68541]
[1724119138165,7.52709,2657.1,2656.8,0.68541]
[1724119138341,3.7635,2657.1,2656.8,0.68541]
[1724119138543,7.52664,2657.3,2656.8,0.68541]
[1724119138891,3.7634,2657.2,2656.8,1.80493593]
[1724119139842,3.7635,2657.1,2656.8,1.80493593]
[1724119140025,3.7635,2657.1,2656.8,0.68541]
[1724119140559,7.52665,2657.3,2656.8,0.68541]
[1724119141121,3.76331,2657.3,2656.8,0.68541]
[1724119141345,7.52661,2657.3,2656.8,0.68541]
[1724119141559,3.7633,2657.3,2656.8,0.68541]
[1724119141759,3.7633,2657.3,2656.9,1.0750329]
[1724119142146,3.7633,2657.3,2656.9,1.21037386]
[1724119142346,3.76307,2657.4,2657.0,0.55]
[1724119142581,3.76307,2657.4,2657.1,0.13513575]
[1724119142787,6.08905,2657.5,2657.1,0.13513575]
[1724119143071,3.76308,2657.4,2657.1,0.13513575]
[1724119143279,3.76295,2657.5,2657.1,0.13513575]
[1724119143442,7.52599,2657.5,2657.1,0.13513575]
[1724119143638,3.76295,2657.5,2657.1,0.13513575]
[1724119143838,3.76322,2657.3,2657.1,0.13513575]
[1724119145077,7.52653,2657.3,2657.1,0.13513575]
[1724119145373,3.76322,2657.3,2657.1,0.13513575]
[1724119145771,3.76302,2657.5,2657.1,0.13513575]
[1724119145946,3.76322,2657.3,2657.1,0.13513575]
[1724119146151,7.52652,2657.3,2657.1,0.13513575]
[1724119146993,3.76322,2657.3,2657.1,0.13513575]
[1724119147370,3.76303,2657.5,2657.1,0.13513575]
[1724119147595,3.76308,2657.4,2657.1,0.13513575]
[1724119147797,3.76303,2657.5,2657.1,0.13513575]
[1724119148129,9.99849,2657.7,2657.2,0.55]
[1724119148334,3.76246,2657.9,2657.2,1.24035758]
[1724119148465,3.76246,2657.9,2657.3,0.13504113]
[1724119148817,3.76266,2657.7,2657.4,0.55]
[1724119149098,3.76266,2657.7,2657.4,0.68492868]
[1724119149304,7.52541,2657.7,2657.4,0.68492868]
[1724119149500,3.76266,2657.7,2657.4,0.68492868]
[1724119150062,3.76281,2657.6,2657.4,0.68492868]
[1724119150371,9.88216,2657.5,2657.4,0.13492868]
[1724119150701,7.52683,2657.2,2656.6,2.4548]
[1724119150903,3.76337,2657.2,2656.6,2.4548]
[1724119151102,7.52683,2657.2,2656.8,0.1352323]
[1724119151306,3.76337,2657.2,2656.8,0.1352323]
[1724119151604,3.76365,2657.0,2656.8,0.1352323]
[1724119152177,7.52683,2657.2,2656.4,13.59928]
[1724119152499,3.76337,2657.2,2656.9,0.13517511]
[1724119152667,3.76314,2657.4,2656.6,3.76419]
[1724119152866,3.76314,2657.4,2657.0,0.13524032]
[1724119153107,3.76314,2657.4,2656.7,0.55]
[1724119153267,3.76314,2657.4,2657.1,0.13520683]
[1724119153615,3.76331,2657.3,2657.2,0.13514965]
[1724119153911,3.76331,2657.3,2656.7,0.55]
[1724119154206,3.7634,2657.2,2656.7,1.1174118]
[1724119154417,3.7634,2657.2,2656.8,0.1353784]
[1724119154709,3.7634,2657.2,2656.9,0.55]
[1724119155002,3.7634,2657.2,2657.0,0.13526401]
[1724119155401,3.7635,2657.1,2657.0,0.13526401]
[1724119155700,3.7635,2657.1,2656.5,1.359928]
[1724119155904,3.7635,2657.1,2657.0,0.13526401]
[1724119156090,3.7635,2657.1,2656.6,2.0459158]
[1724119156294,3.7635,2657.1,2657.0,0.13526401]
[1724119156499,3.7635,2657.1,2656.6,0.55]
[1724119156803,3.76372,2657.0,2656.5,0.55]
[1724119156966,7.52746,2657.0,2656.7,0.1354356]
[1724119157172,3.76372,2657.0,2656.5,1.58848]
[1724119157370,3.76372,2657.0,2656.8,0.1353784]
[1724119157608,2.3796,2657.0,2656.4,7.38]
[1724119157770,9.9083,2656.5,2656.4,7.38]
[1724119157975,6.14395,2656.5,2656.4,7.38]
[1724119160002,9.9083,2656.5,2656.4,7.38]
[1724119160214,3.7649,2656.2,2655.7,19.89]
[1724119160383,3.7649,2656.2,2655.6,9.7075]
[1724119160384,6.14402,2656.5,2655.8,2.95975]
[1724119160585,3.76471,2656.3,2655.6,13.4731]
[1724119161506,6.14402,2656.5,2655.6,13.4731]
[1724119161507,3.7645,2656.4,2655.6,9.7075]
[1724119161708,6.14395,2656.5,2655.8,3.76525]
[1724119161968,6.14395,2656.5,2655.9,0.55]
[1724119162078,9.90839,2656.5,2656.0,0.431525]
[1724119162406,6.14395,2656.5,2656.0,0.431525]
[1724119163002,9.90843,2656.5,2656.0,0.431525]
[1724119163205,9.90843,2656.5,2655.9,0.55]
[1724119163403,3.76451,2656.4,2655.8,0.55]
[1724119164213,9.90839,2656.5,2655.8,4.3153]
[1724119164719,3.7645,2656.4,2655.8,4.3153]
[1724119164914,3.7645,2656.4,2655.8,0.55]
[1724119165220,3.7645,2656.4,2655.7,4.31544]
[1724119165422,3.7645,2656.4,2655.8,1.778845]
[1724119165774,3.76416,2656.7,2655.9,0.55]
[1724119165900,3.76401,2656.8,2656.1,3.76484]
[1724119166097,3.76413,2656.7,2656.2,0.55]
[1724119166546,3.76413,2656.7,2656.0,6.12528]
[1724119166547,3.76413,2656.7,2656.1,0.55]
[1724119166835,3.76428,2656.6,2656.2,0.667528]
[1724119167006,3.76435,2656.5,2656.3,0.55]
[1724119167335,3.76435,2656.5,2656.1,0.55]
[1724119167538,3.76464,2656.3,2656.0,0.55]
[1724119168099,3.76435,2656.5,2656.0,0.55]
[1724119168459,3.7645,2656.4,2656.0,2.1262985]
[1724119168810,3.76475,2656.3,2656.0,2.1262985]
[1724119169139,3.7648,2656.2,2656.0,0.55]
[1724119169539,3.7648,2656.2,2655.9,0.55]
[1724119170140,3.76508,2656.0,2655.8,1.778845]
[1724119170437,7.52971,2656.2,2655.6,7.38]
[1724119170613,7.52969,2656.2,2655.7,0.55]
[1724119171022,3.7648,2656.2,2655.7,0.55]
[1724119171340,3.76507,2656.0,2655.7,0.55]
[1724119172804,3.76507,2656.0,2655.7,0.5]
[1724119174024,3.76527,2655.9,2655.6,7.38]
[1724119174616,3.76535,2655.8,2655.6,7.38]
[1724119174805,3.76507,2656.0,2655.6,7.38]
[1724119175006,3.76507,2656.0,2655.7,0.13662793]
[1724119175436,3.76507,2656.0,2655.5,3.0]
[1724119175654,3.76507,2656.0,2655.8,0.13657069]
[1724119175943,3.7652,2655.9,2655.6,0.55]
[1724119177307,3.7652,2655.9,2655.5,0.55]
[1724119178029,3.76506,2656.0,2655.5,0.55]
[1724119179938,7.5302,2656.0,2655.5,0.55]
[1724119180241,3.76506,2656.0,2655.5,0.55]
[1724119184423,3.76487,2656.2,2655.6,9.84797]
[1724119184622,3.76487,2656.2,2655.7,0.55]
[1724119187408,3.76498,2656.1,2655.7,0.55]
[1724119187613,3.76498,2656.1,2655.6,0.55]
[1724119187849,3.76487,2656.2,2655.6,0.55]
[1724119188350,7.52975,2656.2,2655.6,0.55]
[1724119188841,3.76487,2656.2,2655.6,0.55]
[1724119189238,7.52974,2656.2,2655.6,0.55]
[1724119189435,3.76492,2656.1,2655.6,0.55]
[1724119189941,7.53055,2655.9,2655.6,0.55]
[1724119190271,3.76534,2655.8,2655.7,0.13682154]
[1724119190553,3.76534,2655.8,2655.4,0.55]
[1724119191157,6.15911,2655.9,2655.5,0.13691233]
[1724119191554,6.15911,2655.9,2655.6,0.55]
[1724119191854,9.9244,2655.9,2655.7,0.13679783]
[1724119192154,6.15911,2655.9,2655.7,0.13679783]
[1724119193130,3.76521,2655.9,2655.7,0.13679783]
[1724119195950,3.76502,2656.1,2655.7,0.13679783]
[1724119196154,7.53001,2656.1,2655.8,0.55]
[1724119196355,3.76499,2656.1,2655.8,0.55]
[1724119196656,3.76499,2656.1,2655.9,0.13668335]
[1724119197439,7.52999,2656.1,2655.9,0.13668335]
[1724119198144,3.76506,2656.0,2655.9,0.13668335]
[1724119198322,4.3603104,2656.1,2655.9,0.13668335]
[1724119198836,7.52998,2656.1,2655.9,0.13668335]
[1724119199037,3.76499,2656.1,2655.9,0.13668335]
[1724119200221,3.74874,2656.1,2655.9,0.13668335]
[1724119200451,6.76413,2656.7,2655.9,2.57218335]
[1724119200452,3.76442,2656.5,2655.9,2.57218335]
[1724119200664,3.76421,2656.6,2656.0,4.62718834]
[1724119200973,3.76435,2656.5,2656.0,0.86221834]
[1724119201122,2.4888,2656.7,2656.0,0.86221834]
[1724119201461,3.76459,2656.4,2656.0,0.86221834]
[1724119201655,3.76421,2656.6,2656.1,0.34344017]
[1724119201859,6.25291,2656.7,2656.2,0.55]
[1724119202167,3.76395,2656.8,2656.2,0.55]
[1724119202317,3.76395,2656.8,2656.3,2.4641]
[1724119202679,3.76395,2656.8,2656.4,0.55]
[1724119202978,9.99342,2657.0,2656.4,0.55]
[1724119203131,3.0,2656.9,2656.4,0.55]
[1724119203334,3.0,2656.9,2656.4,1.227887]
[1724119203737,3.76317,2657.4,2656.7,3.76395]
[1724119204064,3.76317,2657.4,2656.8,0.55]
[1724119204555,3.76317,2657.4,2656.7,0.55]
[1724119204768,3.76323,2657.3,2656.7,0.55]
[1724119205564,3.76323,2657.3,2656.6,0.55]
[1724119205723,3.76336,2657.2,2656.6,0.55]
[1724119205921,2.4772,2657.4,2656.6,0.55]
[1724119206259,2.4772,2657.4,2656.3,3.06]
[1724119206260,3.76412,2656.7,2656.1,7.38]
[1724119206447,3.76412,2656.7,2656.1,9.67618394]
[1724119206647,6.24105,2656.9,2656.1,13.44108394]
[1724119206957,6.24105,2656.9,2656.2,2.3961]
[1724119207475,3.76355,2657.1,2656.3,3.76462]
[1724119207695,3.76355,2657.1,2656.4,6.1605]
[1724119207842,3.76355,2657.1,2656.5,1.848512]
[1724119208048,6.24047,2657.3,2656.5,5.612822]
[1724119208359,3.76327,2657.3,2656.7,2.4262]
[1724119208561,3.76337,2657.2,2656.7,2.4262]
[1724119208865,3.76337,2657.2,2656.8,0.55]
[1724119209089,3.76351,2657.1,2656.8,0.55]
[1724119209296,2.3627,2657.0,2656.6,0.55]
[1724119209434,6.12597,2657.3,2656.5,8.07856]
[1724119209636,3.7634,2657.2,2656.5,4.31422]
[1724119209948,3.7634,2657.2,2656.6,1.412042]
[1724119210149,3.7634,2657.2,2656.7,0.55]
[1724119210587,2.3627,2657.3,2656.7,0.55]
[1724119210735,2.3627,2657.7,2656.9,6.82375]
[1724119210935,2.3627,2657.7,2657.1,3.76341]
[1724119211155,6.12511,2657.9,2657.2,2.4262]
[1724119211470,6.12511,2657.9,2657.3,0.55]
[1724119211778,3.76329,2657.3,2656.9,7.38]
[1724119211941,3.76378,2656.9,2656.6,19.64]
[1724119212267,3.76378,2656.9,2656.3,9.82456]
[1724119212268,3.76378,2656.9,2656.3,12.25076]
[1724119212478,3.76378,2656.9,2656.4,3.87739672]
[1724119212838,3.76361,2657.1,2656.4,3.87739672]
[1724119213044,3.76399,2656.8,2656.2,27.27]
[1724119213765,2.3627,2657.1,2656.3,2.3945]
[1724119213929,2.3627,2657.1,2656.5,3.76426]
[1724119214134,6.03255,2657.4,2656.7,3.76406]
[1724119214466,6.03255,2657.4,2656.8,3.320906]
[1724119214467,2.2694,2657.4,2656.8,3.320906]
[1724119214911,3.76296,2657.5,2656.9,3.76378]
[1724119215083,3.7628,2657.6,2657.0,0.55]
[1724119215495,3.76272,2657.7,2657.0,0.55]
[1724119215691,3.76272,2657.7,2657.0,4.31356]
[1724119215888,5.2755,2657.8,2657.0,0.55]
[1724119216091,3.76254,2657.8,2657.0,0.55]
[1724119216298,6.25029,2657.3,2656.8,0.55]
[1724119216980,7.52598,2657.5,2656.9,2.2681]
[1724119217206,7.526,2657.5,2656.9,2.2681]
[1724119217416,3.76294,2657.5,2656.9,2.40355943]
[1724119218019,3.76317,2657.4,2656.9,2.40355943]
[1724119219193,3.76281,2657.6,2656.9,6.16726943]
[1724119219419,6.24974,2657.7,2657.0,4.31356]
[1724119219716,6.24974,2657.7,2657.0,4.44886747]
[1724119220222,3.76283,2657.6,2657.0,4.44886747]
[1724119220425,6.24973,2657.7,2657.0,4.44886747]
[1724119221631,6.24973,2657.7,2657.0,5.63792411]
[1724119221815,6.24973,2657.7,2657.1,3.76347]
[1724119221986,6.24973,2657.7,2657.2,0.55]
[1724119222195,3.76245,2657.9,2657.2,0.68509835]
[1724119222397,3.76245,2657.9,2657.3,2.4202]
[1724119222592,3.76245,2657.9,2657.4,0.55]
[1724119222799,3.76267,2657.7,2657.4,0.68495637]
[1724119223937,7.52489,2657.9,2657.4,0.68495637]
[1724119224094,3.76254,2657.8,2657.4,0.68495637]
[1724119224838,3.76244,2657.9,2657.4,0.68495637]
[1724119225200,3.76253,2657.8,2657.4,0.68495637]
[1724119225400,7.52492,2657.9,2657.4,0.68495637]
[1724119225602,7.52493,2657.9,2657.4,0.68495637]
[1724119226204,3.76244,2657.9,2657.4,0.68495637]
[1724119226504,3.76244,2657.9,2657.4,1.50610701]
[1724119226812,3.76251,2657.8,2657.4,1.50610701]
[1724119227403,3.0,2658.0,2657.4,7.55886701]
[1724119227606,6.76228,2658.0,2657.4,7.55886701]
[1724119227818,6.25149,2658.3,2657.6,3.76279]
[1724119228027,3.76132,2658.7,2658.1,3.762]
[1724119228267,3.76132,2658.7,2658.2,2.2675]
[1724119228268,3.76124,2658.7,2658.2,2.2675]
[1724119228471,3.76124,2658.7,2658.3,0.85197808]
[1724119228922,3.76104,2658.9,2658.4,0.13386377]
[1724119229118,3.76117,2658.8,2658.5,0.55]
[1724119229430,3.76148,2658.6,2658.3,0.77675]
[1724119229841,3.76153,2658.5,2658.3,0.55]
[1724119230202,3.76148,2658.6,2658.3,0.55]
[1724119230605,2.3904,2659.0,2658.3,0.55]
[1724119230606,6.15125,2659.0,2658.3,0.55]
[1724119230842,3.76127,2658.7,2658.3,0.55]
[1724119231625,3.76166,2658.4,2657.9,2.2966]
[1724119231942,3.76166,2658.4,2658.0,0.55]
[1724119232817,3.76146,2658.6,2658.0,0.55]
[1724119233421,3.76152,2658.5,2658.0,0.55]
[1724119233625,3.76146,2658.6,2658.0,0.55]
[1724119233831,7.52239,2658.8,2658.1,0.660885]
[1724119234055,3.76124,2658.7,2658.1,4.422955]
[1724119234256,3.76124,2658.7,2658.2,0.55]
[1724119234757,3.76138,2658.6,2658.2,0.55]
[1724119235128,3.76084,2659.0,2658.3,6.06172]
[1724119235333,3.76084,2659.0,2658.4,1.211172]
[1724119236139,3.76084,2659.0,2658.4,4.972702]
[1724119236756,7.52173,2659.0,2658.4,4.972702]
[1724119236922,3.76084,2659.0,2658.4,1.211172]
[1724119237123,3.76096,2658.9,2658.4,1.211172]
[1724119237323,3.76096,2658.9,2658.5,0.7272892]
[1724119237572,3.76096,2658.9,2658.6,0.55]
[1724119238122,3.76096,2658.9,2658.7,0.1334202]
[1724119238625,3.76084,2659.0,2658.7,0.1334202]
[1724119238940,3.76072,2659.1,2658.7,0.1334202]
[1724119239241,7.52175,2659.0,2658.7,0.65064214]
[1724119239431,7.52175,2659.0,2658.7,0.1334202]
[1724119239834,3.76109,2658.8,2658.7,0.1334202]
[1724119240032,3.76109,2658.8,2658.2,7.38]
[1724119240033,3.76135,2658.7,2658.2,7.38]
[1724119240231,3.76135,2658.7,2658.3,0.55]
[1724119240450,3.76139,2658.6,2658.3,3.7082]
[1724119241663,3.76161,2658.5,2658.2,7.38]
[1724119241863,2.3702,2658.8,2658.2,7.38]
[1724119242067,2.3702,2658.8,2657.5,3.76285]
[1724119242068,3.7626,2657.8,2657.5,7.38]
[1724119242241,6.1328,2657.8,2657.2,12.26]
[1724119242440,6.1328,2657.8,2657.3,3.87739672]
[1724119242854,3.76269,2657.7,2657.3,3.87739672]
[1724119243255,3.76279,2657.6,2657.3,3.87739672]
[1724119244231,3.76269,2657.7,2657.3,3.87739672]
[1724119244436,3.76283,2657.6,2657.3,3.87739672]
[1724119244669,3.76269,2657.7,2657.3,3.87739672]
[1724119244870,3.76269,2657.7,2657.4,0.50797903]
[1724119244871,7.52546,2657.7,2657.4,0.50797903]
[1724119245168,3.76279,2657.6,2657.4,0.50797903]
[1724119246273,3.76293,2657.5,2657.2,12.26]
[1724119246447,3.76345,2657.2,2656.8,7.38]
[1724119246646,3.76351,2657.1,2656.6,5.4236]
[1724119246847,3.76351,2657.1,2656.7,2.03976812]
[1724119247160,9.77905,2657.3,2656.7,2.03976812]
[1724119247362,3.76321,2657.3,2656.7,2.03976812]
[1724119247674,3.76321,2657.3,2656.7,5.80382812]
[1724119247837,3.76321,2657.3,2656.8,0.55]
[1724119248156,3.76321,2657.3,2656.9,0.63538281]
[1724119249340,3.76329,2657.3,2656.9,0.63538281]
[1724119249970,3.76309,2657.4,2656.9,0.63538281]
[1724119250178,6.01537,2657.6,2656.9,0.63538281]
[1724119250179,6.01537,2657.6,2657.0,4.31356]
[1724119250361,6.01537,2657.6,2657.0,0.55]
[1724119250562,6.01537,2657.6,2657.1,0.49490228]
[1724119250742,6.01537,2657.6,2657.2,0.55]
[1724119250943,3.76267,2657.7,2657.2,0.55]
[1724119251145,3.76279,2657.6,2657.2,0.55]
[1724119251879,3.76294,2657.5,2657.2,0.55]
[1724119252778,3.76279,2657.6,2657.2,0.55]
[1724119253142,7.52567,2657.6,2657.3,0.13467005]
[1724119253345,3.76294,2657.5,2657.3,0.13467005]
[1724119253645,3.76316,2657.4,2657.1,0.49490228]
[1724119253845,3.76275,2657.7,2657.4,0.13461683]
[1724119254048,3.76275,2657.7,2657.1,6.18709]
[1724119254375,3.76275,2657.7,2657.5,0.13453992]
[1724119254566,3.76275,2657.7,2657.2,0.55]
[1724119254763,6.01495,2657.9,2657.6,0.13448276]
[1724119254764,2.2525,2657.9,2657.6,0.13448276]
[1724119255084,3.76225,2658.0,2657.4,3.76305]
[1724119255407,3.76208,2658.1,2657.7,0.1344256]
[1724119255693,3.76208,2658.1,2657.5,5.20004892]
[1724119255896,3.76208,2658.1,2657.8,0.13436845]
[1724119256197,3.76223,2658.0,2657.5,5.065509]
[1724119256356,3.76223,2658.0,2657.9,0.13431129]
[1724119256747,3.76223,2658.0,2657.5,5.065509]
[1724119256949,3.76223,2658.0,2657.9,0.13431129]
[1724119257148,3.76223,2658.0,2657.5,5.065509]
[1724119257149,3.76241,2657.9,2657.5,0.55]
[1724119257378,3.76241,2657.9,2657.4,0.55]
[1724119257583,3.76251,2657.8,2657.4,0.55]
[1724119257783,3.76237,2657.9,2657.3,4.31318]
[1724119257993,3.76237,2657.9,2657.4,0.431318]
[1724119258306,3.76237,2657.9,2657.5,0.55]
[1724119259250,3.76256,2657.8,2657.5,0.55]
[1724119259972,3.76237,2657.9,2657.5,0.55]
[1724119261002,3.76217,2658.1,2657.5,0.55]
[1724119261181,3.76217,2658.1,2657.6,2.9573298]
[1724119261498,3.76217,2658.1,2657.7,0.55]
[1724119262210,7.52436,2658.1,2657.7,0.55]
[1724119262399,7.52433,2658.1,2657.7,0.55]
[1724119262981,3.76223,2658.0,2657.7,0.55]
[1724119263349,3.76243,2657.9,2657.2,11.14325]
[1724119263548,3.76259,2657.8,2657.3,1.913095]
[1724119263945,3.76266,2657.7,2657.3,1.913095]
[1724119264197,3.76292,2657.6,2657.3,1.913095]
[1724119264364,2.3506,2657.6,2657.2,7.38]
[1724119264569,2.3506,2657.6,2657.0,23.65359]
[1724119264570,3.76266,2657.7,2657.1,3.76348]
[1724119264827,3.76266,2657.7,2657.1,3.76342]
[1724119265010,3.76266,2657.7,2657.1,7.52684]
[1724119265169,3.76266,2657.7,2657.2,2.741684]
[1724119265491,3.76266,2657.7,2657.2,6.505034]
[1724119266093,3.76266,2657.7,2657.3,0.55]
[1724119268091,3.76266,2657.7,2657.4,0.13431295]
[1724119270601,6.11233,2658.0,2657.4,3.89728295]
[1724119270827,6.11233,2658.0,2657.5,1.2363383]
[1724119270828,3.76245,2657.9,2657.5,1.2363383]
[1724119270993,7.52491,2657.9,2657.5,0.55]
[1724119271188,3.76245,2657.9,2657.6,0.13419862]
[1724119271427,7.52491,2657.9,2657.6,0.13419862]
[1724119271626,3.76245,2657.9,2657.6,0.13419862]
[1724119272132,3.76258,2657.8,2657.6,0.13419862]
[1724119272430,3.76265,2657.7,2657.6,0.13419862]
[1724119272637,14.53947,2657.7,2657.6,0.13419862]
[1724119272835,3.76333,2657.3,2656.9,7.38]
[1724119272989,7.52662,2657.3,2656.9,7.38]
[1724119273418,3.76336,2657.2,2656.9,7.38]
[1724119273602,6.25636,2657.2,2656.9,7.38]
[1724119273803,3.494966,2657.2,2656.8,19.89]
[1724119274129,6.2572,2656.6,2656.5,7.38]
[1724119274320,6.2572,2656.6,2656.1,0.59013212]
[1724119274756,3.7642,2656.6,2656.1,0.59013212]
[1724119276637,6.14593,2656.3,2656.0,7.38]
[1724119276836,3.7648,2656.2,2656.0,7.38]
[1724119277044,3.76455,2656.4,2656.0,7.38]
[1724119277345,3.76449,2656.4,2656.0,7.38]
[1724119278136,3.76449,2656.4,2656.1,0.55]
[1724119278333,3.0,2657.1,2655.7,0.5903024]
[1724119278334,3.76481,2656.2,2655.7,0.5903024]
[1724119278597,3.765,2656.1,2655.7,0.5903024]
[1724119278889,2.4445,2656.3,2655.7,0.5903024]
[1724119279243,3.76479,2656.2,2655.7,0.5903024]
[1724119279956,3.76506,2656.0,2655.7,0.5903024]
[1724119280161,3.76479,2656.2,2655.8,0.55]
[1724119282149,3.76456,2656.4,2655.8,0.55]
[1724119282518,3.76456,2656.4,2655.8,4.31522]
[1724119282667,6.09231,2656.6,2655.9,3.76519]
[1724119282865,3.76443,2656.5,2656.0,0.55]
[1724119283075,3.76443,2656.5,2656.1,0.13581851]
[1724119283326,3.76443,2656.5,2656.2,0.55]
[1724119283613,3.76443,2656.5,2656.3,0.13570407]
[1724119283830,6.09231,2656.6,2656.3,0.13570407]
[1724119284119,3.76443,2656.5,2656.3,0.13570407]
[1724119284280,3.76449,2656.4,2656.3,0.13570407]
[1724119284811,8.514675,2656.4,2656.3,0.13570407]
[1724119285308,3.76503,2656.1,2655.9,7.38]
[1724119287008,7.53002,2656.1,2655.9,7.38]
[1724119287208,6.17019,2656.1,2655.9,7.38]
[1724119287375,9.9352,2656.1,2655.9,7.38]
[1724119287579,9.93518,2656.1,2655.9,7.38]
[1724119287894,6.17019,2656.1,2655.9,7.38]
[1724119288221,6.16965,2656.5,2655.9,0.738]
[1724119288376,3.76457,2656.4,2656.0,0.55]
[1724119288572,3.76463,2656.3,2655.9,0.55]
[1724119288800,3.76449,2656.4,2655.8,0.55]
[1724119289005,6.16965,2656.5,2655.9,0.431536]
[1724119289233,6.16965,2656.5,2656.0,0.55]
[1724119289704,3.76464,2656.3,2656.0,0.55]
[1724119291383,6.16965,2656.5,2656.0,0.55]
[1724119291384,9.93408,2656.5,2656.0,0.55]
[1724119291586,9.93408,2656.5,2656.0,1.0246716]
[1724119291842,6.16963,2656.5,2656.0,1.0246716]
[1724119292184,2.4052,2656.5,2656.0,1.0246716]
[1724119292380,3.76421,2656.6,2656.0,4.7896216]
[1724119292593,3.76411,2656.7,2656.0,1.0246716]
[1724119292793,3.76436,2656.5,2656.1,0.71903916]
[1724119293009,3.76436,2656.5,2656.2,0.55]
[1724119294684,2.2626,2656.3,2656.2,0.55]
[1724119294914,6.02723,2656.3,2656.2,0.55]
[1724119295303,6.02723,2656.3,2655.8,7.38]
[1724119295503,6.02723,2656.3,2655.9,1.664538]
[1724119295684,3.76454,2656.4,2655.9,1.664538]
[1724119295883,7.52914,2656.4,2655.9,1.664538]
[1724119296284,3.76454,2656.4,2655.9,1.664538]
[1724119296803,3.76454,2656.4,2655.9,5.429718]
[1724119297005,3.76454,2656.4,2656.0,1.2809718]
[1724119297310,3.76464,2656.3,2656.0,1.2809718]
[1724119298314,3.76464,2656.3,2656.1,0.13627256]
[1724119300315,3.76436,2656.5,2656.1,0.13627256]
[1724119300519,3.76436,2656.5,2656.2,0.55]
[1724119300707,3.76436,2656.5,2656.3,0.13618182]
[1724119301293,7.52898,2656.4,2656.3,0.13618182]
[1724119301493,0.602696,2656.5,2655.8,7.38]
[1724119301494,3.76493,2656.1,2655.8,7.38]
[1724119301723,3.76493,2656.1,2655.9,0.68641073]
[1724119302224,3.76493,2656.1,2655.9,0.13641073]
[1724119302225,3.76506,2656.0,2655.9,0.13641073]
[1724119305530,9.99102,2656.0,2655.9,0.13641073]
[1724119306504,3.76524,2655.9,2655.3,11.14601]
[1724119306710,3.76524,2655.9,2655.4,2.17807586]
[1724119308111,6.22596,2656.0,2655.4,5.94394586]
[1724119309223,9.9911,2656.0,2655.4,5.94394586]
[1724119309550,2.4609,2656.0,2655.5,3.7657]
[1724119309745,2.4609,2656.0,2655.6,0.68675235]
[1724119309926,2.4609,2656.0,2655.6,1.71270549]
[1724119310523,2.4609,2656.0,2655.6,5.47832549]
[1724119310722,6.82399,2656.8,2655.6,1.71270549]
[1724119310723,3.76429,2656.6,2655.6,1.71270549]
[1724119311021,3.76429,2656.6,2656.0,3.76499]
[1724119311234,7.52861,2656.6,2656.1,0.55]
[1724119311435,2.338,2656.7,2656.1,0.55]
[1724119311436,2.338,2656.7,2656.1,0.68657285]
[1724119311635,2.338,2656.7,2656.2,3.76469]
[1724119311855,3.76404,2656.8,2656.3,0.99512629]
[1724119312164,3.76404,2656.8,2656.3,1.13157679]
[1724119312492,2.338,2656.9,2656.3,4.89612679]
[1724119312635,6.10178,2656.9,2656.3,4.89612679]
[1724119313251,6.10144,2657.2,2656.4,6.24109]
[1724119313433,2.338,2657.2,2656.6,3.7641]
[1724119313807,2.338,2657.2,2656.7,0.68601622]
[1724119314059,3.76315,2657.4,2656.7,0.68601622]
[1724119314751,6.09723,2657.0,2656.7,0.68601622]
[1724119315939,3.76392,2656.8,2656.7,0.68601622]
[1724119316324,3.76392,2656.8,2656.7,0.13601622]
[1724119316528,3.76392,2656.8,2656.4,7.38]
[1724119316741,3.76392,2656.8,2656.5,0.13599635]
[1724119316958,3.76379,2656.9,2656.5,0.13599635]
[1724119316959,3.76411,2656.7,2656.5,0.13599635]
[1724119317137,9.8818,2656.6,2656.5,0.13599635]
[1724119317337,9.8818,2656.6,2656.0,7.38]
[1724119317538,6.11739,2656.8,2656.1,0.13603161]
[1724119317973,6.11739,2656.8,2656.1,3.90094161]
[1724119318267,6.11739,2656.8,2656.1,0.13603161]
[1724119318268,3.76415,2656.7,2656.1,0.13603161]
[1724119318459,3.76415,2656.7,2656.1,1.94404531]
[1724119318666,3.76415,2656.7,2656.2,0.55]
[1724119318865,3.76432,2656.6,2656.1,0.13603161]
[1724119319043,3.76432,2656.6,2656.3,0.13591716]
[1724119319241,3.76432,2656.6,2656.0,7.38]
[1724119319242,3.76432,2656.6,2656.2,0.13603758]
[1724119319574,7.52863,2656.6,2656.3,0.13598036]
[1724119319730,3.76431,2656.6,2656.0,7.38]
[1724119319932,6.1179,2656.4,2656.1,0.1360948]
[1724119320127,2.3534,2656.4,2656.1,0.1360948]
[1724119320354,2.3534,2656.4,2656.2,0.55]
[1724119320567,2.3534,2656.4,2656.3,0.13598036]
[1724119321144,6.11789,2656.4,2656.3,0.13598036]
[1724119321531,6.11789,2656.4,2656.0,7.38]
[1724119321532,3.76465,2656.3,2656.0,7.38]
[1724119321732,3.76465,2656.3,2656.1,0.1360948]
[1724119321970,3.76479,2656.2,2656.1,0.1360948]
[1724119322168,3.76479,2656.2,2655.5,8.16905602]
[1724119322169,3.76479,2656.2,2655.5,9.34370559]
[1724119322349,3.76479,2656.2,2655.6,0.13638099]
[1724119322350,3.76502,2656.1,2655.6,0.13638099]
[1724119323333,3.76479,2656.2,2655.7,0.55]
[1724119323534,2.3534,2656.4,2655.8,6.2147065]
[1724119323735,2.3534,2656.4,2655.9,1.22647065]
[1724119323943,6.11763,2656.6,2656.0,3.90135611]